fUST/lending_fUST_20240624
["ID","MTS","AMOUNT","RATE_DAILY","PERIOD"]
[330278485,1719222648004,-2340.71,0.00018356,2]
[330278486,1719222648013,-500.0,0.00018356,2]
[330278487,1719222648023,-2043.36,0.00018356,2]
[330278488,1719222648032,-500.0,0.00018356,2]
[330278489,1719222648041,-2381.46,0.00018356,2]
[330278490,1719222648051,-10574.72,0.00018356,2]
[330278491,1719222648063,-565.16,0.00018356,2]
[330278492,1719222648072,-500.0,0.00018356,2]
[330278493,1719222648082,-500.0,0.00018356,2]
[330278494,1719222648091,-1370.5,0.00018356,2]
[330278495,1719222648100,-546.7,0.00018356,2]
[330278496,1719222648110,-500.0,0.00018356,2]
[330278497,1719222648119,-500.0,0.00018356,2]
[330278498,1719222648129,-500.0,0.00018356,2]
[330278499,1719222648138,-724.98,0.00018356,2]
[330278500,1719222648150,-679.64,0.00018356,2]
[330278501,1719222648159,-275.25273,0.00018356,2]
[330278502,1719222648167,-3072.69,0.00018356,2]
[330278503,1719222648177,-500.0,0.00018356,2]
[330278504,1719222648186,-2920.02,0.00018356,2]
[330278505,1719222648194,-610.21,0.00018356,2]
[330278506,1719222648204,-6555.2,0.00018356,2]
[330278507,1719222648213,-500.0,0.00018356,2]
[330278508,1719222648223,-1737.68,0.00018356,2]
[330278509,1719222648232,-500.0,0.00018361,2]
[330278510,1719222648241,-520.59,0.00018361,2]
[330278511,1719222648251,-500.0,0.00018361,2]
[330278512,1719222648260,-500.0,0.00018361,2]
[330278513,1719222648270,-500.0,0.00018361,2]
[330278514,1719222648279,-500.0,0.00018361,2]
[330278515,1719222648289,-500.0,0.00018361,2]
[330278516,1719222648298,-500.0,0.00018361,2]
[330278517,1719222648308,-500.0,0.00018361,2]
[330278518,1719222648318,-500.0,0.00018361,2]
[330278519,1719222648327,-500.0,0.00018361,2]
[330278520,1719222648337,-500.0,0.00018361,2]
[330278521,1719222648347,-500.0,0.00018361,2]
[330278522,1719222648356,-500.0,0.00018361,2]
[330278523,1719222648365,-491.34716098,0.00018361,2]
[330278524,1719222648375,-500.0,0.00018361,2]
[330278525,1719222648384,-500.0,0.00018361,2]
[330278526,1719222648393,-500.0,0.00018361,2]
[330278527,1719222648411,-929.98,0.00018361,2]
[330278528,1719222648421,-500.0,0.00018361,2]
[330278529,1719222648432,-500.0,0.00018361,2]
[330278530,1719222648442,-500.0,0.00018361,2]
[330278531,1719222648453,-539.63,0.00018378,2]
[330278532,1719222648464,-500.0,0.00018389,2]
[330278533,1719222648474,-500.0,0.00018389,2]
[330278534,1719222648485,-600.0,0.00018401,2]
[330278535,1719222648500,-9910.39,0.00018416,2]
[330278536,1719222648509,-500.0,0.00018416,2]
[330278537,1719222648520,-620.05451427,0.00018423,2]
[330278538,1719222648531,-302.9,0.00018428,2]
[330278539,1719222648541,-151.0,0.00018428,2]
[330278540,1719222648551,-513.29,0.00018487,2]
[330278541,1719222648562,-608.1,0.00018487,2]
[330278542,1719222648575,-721.72,0.00018487,2]
[330278543,1719222648587,-674.66,0.00018487,2]
[330278544,1719222648597,-154.80649189,0.00018499,2]
[330278545,1719222648607,-154.80649189,0.00018499,2]
[330278546,1719222648618,-6736.92,0.00018516,2]
[330278547,1719222648628,-716.29,0.00018516,2]
[330278548,1719222648637,-500.0,0.00018516,2]
[330278549,1719222648649,-549.47,0.00018516,2]
[330278550,1719222648662,-736.46,0.00018516,2]
[330278551,1719222648672,-205.7840921,0.00018548,2]
[330278552,1719222648681,-205.7840919,0.00018548,2]
[330278553,1719222648691,-205.7840921,0.00018548,2]
[330278554,1719222648705,-205.7840919,0.00018548,2]
[330278555,1719222648716,-205.7840921,0.00018548,2]
[330278556,1719222648726,-204.4973183,0.00018548,2]
[330278557,1719222648736,-152.36249781,0.00018551,2]
[330278558,1719222648746,-500.0,0.00018551,2]
[330278559,1719222648756,-500.0,0.00018551,2]
[330278560,1719222648766,-500.0,0.00018551,2]
[330278561,1719222648776,-500.0,0.00018551,2]
[330278562,1719222648786,-500.0,0.00018568,2]
[330278563,1719222648796,-761.8,0.00018568,2]
[330278564,1719222648806,-500.0,0.00018568,2]
[330278565,1719222648815,-500.0,0.00018568,2]
[330278566,1719222648825,-500.0,0.00018568,2]
[330278567,1719222648834,-500.0,0.00018568,2]
[330278568,1719222648844,-500.0,0.00018568,2]
[330278569,1719222648853,-625.27,0.00018568,2]
[330278570,1719222648863,-500.0,0.00018568,2]
[330278571,1719222648872,-228.07521495,0.00018568,2]
[330278572,1719222648881,-500.0,0.00018568,2]
[330278573,1719222648891,-302.9,0.00018613,2]
[330278574,1719222649010,-151.0,0.00018613,2]
[330278575,1719222649019,-500.0,0.00018628,2]
[330278576,1719222649029,-500.0,0.00018628,2]
[330278577,1719222649039,-500.0,0.00018628,2]
[330278578,1719222649049,-500.0,0.00018628,2]
[330278579,1719222649058,-515.22,0.00018628,2]
[330278580,1719222649068,-500.0,0.00018628,2]
[330278581,1719222649079,-154.80649189,0.00018629,2]
[330278582,1719222649088,-511.16,0.00018629,2]
[330278583,1719222649098,-500.0,0.0001863,2]
[330278584,1719222649107,-779.74,0.0001863,2]
[330278585,1719222649116,-500.0,0.0001863,2]
[330278586,1719222649126,-2095.96,0.0001863,2]
[330278587,1719222649135,-1081.27,0.0001863,2]
[330278588,1719222649144,-500.0,0.0001863,2]
[330278589,1719222649157,-712.48,0.0001863,2]
[330278590,1719222649167,-500.0,0.0001863,2]
[330278591,1719222649177,-500.0,0.0001863,2]
[330278592,1719222649186,-576.58,0.0001863,2]
[330278593,1719222649196,-2767.39,0.0001863,2]
[330278594,1719222649205,-509.4,0.0001863,2]
[330278595,1719222649215,-9674.72358495,0.0001863,2]
[330278596,1719222649356,-459.088,0.0001863,2]
[330278597,1719222649712,-400.0,0.00017198,2]
[330278598,1719222649721,-2025.23985438,0.0001863,2]
[330278599,1719222649734,-398.09032912,0.0001863,2]
[330278600,1719222649745,-1823.86823155,0.0001863,2]
[330278601,1719222649754,-500.0,0.0001863,2]
[330278602,1719222649764,-500.0,0.0001863,2]
[330278603,1719222649773,-1470.27,0.0001863,2]
[330278604,1719222649782,-500.0,0.0001863,2]
[330278605,1719222649791,-3076.64,0.0001863,2]
[330278606,1719222649801,-1339.48,0.0001863,2]
[330278607,1719222649810,-999.77,0.0001863,2]
[330278608,1719222649820,-2340.71,0.0001863,2]
[330278609,1719222649829,-500.0,0.0001863,2]
[330278610,1719222649838,-2043.36,0.0001863,2]
[330278611,1719222649848,-500.0,0.0001863,2]
[330278612,1719222649857,-2381.46,0.0001863,2]
[330278613,1719222649867,-10574.72,0.0001863,2]
[330278614,1719222649876,-565.16,0.0001863,2]
[330278615,1719222649886,-500.0,0.0001863,2]
[330278616,1719222649898,-500.0,0.0001863,2]
[330278617,1719222649908,-1370.5,0.0001863,2]
[330278618,1719222649918,-546.7,0.0001863,2]
[330278619,1719222649927,-500.0,0.0001863,2]
[330278620,1719222649937,-500.0,0.0001863,2]
[330278621,1719222649947,-592.42020168,0.0001863,2]
[330278622,1719222649956,-724.98,0.0001863,2]
[330278623,1719222649966,-679.64,0.0001863,2]
[330278624,1719222649975,-3072.69,0.0001863,2]
[330278625,1719222649985,-500.0,0.0001863,2]
[330278626,1719222649995,-2920.02,0.0001863,2]
[330278627,1719222650004,-610.21,0.0001863,2]
[330278628,1719222650013,-6555.2,0.0001863,2]
[330278629,1719222650022,-500.0,0.0001863,2]
[330278630,1719222650032,-1737.68,0.0001863,2]
[330278631,1719222650041,-500.0,0.00018635,2]
[330278632,1719222650050,-520.59,0.00018635,2]
[330278633,1719222650060,-500.0,0.00018635,2]
[330278634,1719222650069,-500.0,0.00018635,2]
[330278635,1719222650078,-500.0,0.00018635,2]
[330278636,1719222650088,-500.0,0.00018635,2]
[330278637,1719222650098,-500.0,0.00018635,2]
[330278638,1719222650107,-500.0,0.00018635,2]
[330278639,1719222650116,-500.0,0.00018635,2]
[330278640,1719222650126,-500.0,0.00018635,2]
[330278641,1719222650135,-500.0,0.00018635,2]
[330278642,1719222650144,-500.0,0.00018635,2]
[330278643,1719222650156,-553.21640892,0.00018635,2]
[330278644,1719222650165,-500.0,0.00018635,2]
[330278645,1719222650175,-500.0,0.00018635,2]
[330278646,1719222650184,-500.0,0.00018635,2]
[330278647,1719222650193,-929.98,0.00018635,2]
[330278648,1719222650202,-500.0,0.00018635,2]
[330278649,1719222650211,-500.0,0.00018635,2]
[330278650,1719222650220,-500.0,0.00018635,2]
[330278651,1719222650230,-539.63,0.00018652,2]
[330278652,1719222650239,-299.13495307,0.00018663,2]
[330278653,1719222650248,-500.0,0.00018663,2]
[330278654,1719222650257,-306.0,0.00018685,2]
[330278655,1719222650267,-9910.39,0.0001869,2]
[330278656,1719222650276,-500.0,0.0001869,2]
[330278657,1719222650285,-757.78264509,0.00018707,2]
[330278658,1719222650295,-608.1,0.00018761,2]
[330278659,1719222650304,-721.72,0.00018761,2]
[330278660,1719222650314,-674.66,0.00018761,2]
[330278661,1719222650323,-6736.92,0.0001879,2]
[330278662,1719222650332,-716.29,0.0001879,2]
[330278663,1719222650342,-500.0,0.0001879,2]
[330278664,1719222650351,-549.47,0.0001879,2]
[330278665,1719222650360,-736.46,0.0001879,2]
[330278666,1719222650370,-157.894736,0.00018795,2]
[330278667,1719222650379,-302.9,0.00018798,2]
[330278668,1719222650389,-151.0,0.00018798,2]
[330278669,1719222650400,-2054.64639195,0.000188,2]
[330278670,1719222650409,-500.0,0.00018825,2]
[330278671,1719222650418,-500.0,0.00018825,2]
[330278672,1719222650427,-500.0,0.00018825,2]
[330278673,1719222650435,-500.0,0.00018825,2]
[330278674,1719222650444,-500.0,0.00018842,2]
[330278675,1719222650453,-761.8,0.00018842,2]
[330278676,1719222650463,-500.0,0.00018842,2]
[330278677,1719222650473,-500.0,0.00018842,2]
[330278678,1719222650487,-500.0,0.00018842,2]
[330278679,1719222650496,-500.0,0.00018842,2]
[330278680,1719222650506,-500.0,0.00018842,2]
[330278681,1719222650515,-625.27,0.00018842,2]
[330278682,1719222650525,-310.56609589,0.00018842,2]
[330278683,1719222650538,-189.43390411,0.00018842,2]
[330278684,1719222650547,-500.0,0.00018842,2]
[330278685,1719222650556,-587.0,0.00018853,2]
[330278686,1719222650567,-500.0,0.00018874,2]
[330278687,1719222650577,-500.0,0.00018874,2]
[330278688,1719222650587,-501.96,0.00018874,2]
[330278689,1719222650596,-1135.86609589,0.000189,2]
[330278690,1719222650607,-1569.04531376,0.000189,2]
[330278692,1719222662752,-655389.56522955,0.000189,2]
[330278693,1719222663046,-531.18915863,0.00016438,2]
[330278694,1719222663055,-154.82195475,0.00017894,2]
[330278695,1719222663065,-3721.07848969,0.00018145,2]
[330278696,1719222663074,-11817.91039758,0.000189,2]
[330278697,1719222663085,-20941.39206642,0.000189,2]
[330278698,1719222663109,-757.78264509,0.00018629,2]
[330278699,1719222663119,-1513.02939282,0.000189,2]
[330278706,1719222747595,152.58,0.000224,31]
[330278707,1719222747654,152.58,0.000224,31]
[330278708,1719222747715,152.58,0.000224,31]
[330278709,1719222747775,152.58,0.000224,31]
[330278710,1719222747828,152.58,0.000224,31]
[330278711,1719222748027,152.58,0.000224,31]
[330278712,1719222748089,152.58,0.000224,31]
[330278713,1719222748147,152.58,0.000224,31]
[330278714,1719222748196,152.58,0.000224,31]
[330278715,1719222748259,152.58,0.000224,31]
[330278716,1719222748316,152.58,0.000224,31]
[330278717,1719222748369,152.58,0.000224,31]
[330278718,1719222759975,1656.0,0.00025999,120]
[330278720,1719222808737,3000.0,0.000225,30]
[330278721,1719222819148,1102.66100667,0.00025,120]
[330278728,1719223119124,1102.66100667,0.00025,120]
[330278729,1719223138412,248.585111,0.00014988,2]
[330278735,1719223224433,379.1,0.00010959,2]
[330278736,1719223234452,228.6642487,0.00014988,2]
[330278737,1719223248535,3767.28917554,0.00014988,2]
[330278741,1719223353662,152.6,0.000224,31]
[330278742,1719223353726,152.6,0.000224,31]
[330278743,1719223353791,152.6,0.000224,31]
[330278744,1719223353853,152.6,0.000224,31]
[330278745,1719223353908,152.6,0.000224,31]
[330278746,1719223353957,152.6,0.000224,31]
[330278747,1719223354014,152.6,0.000224,31]
[330278748,1719223354070,152.6,0.000224,31]
[330278749,1719223399835,3000.0,0.000225,30]
[330278750,1719223420288,1102.66100667,0.00025,120]
[330278751,1719223517577,20376.36146476,0.00014857,2]
[330278752,1719223517602,4523.63853524,0.00014857,2]
[330278754,1719223706836,-565.3492942,0.00015103,2]
[330278755,1719223706869,-85.90973144,0.00015108,2]
[330278756,1719223706906,-293.17227296,0.00015108,2]
[330278757,1719223706942,-304.132991,0.00015261,2]
[330278758,1719223719170,1102.66100667,0.00025,120]
[330278772,1719223837827,-248.5851119,0.00015575,2]
[330278773,1719223837836,-251.84591272,0.00016238,2]
[330278775,1719223837846,-300.0,0.00016437,2]
[330278777,1719223837856,-300.0,0.00016437,2]
[330278779,1719223837865,-500.0,0.00016438,2]
[330278782,1719223837876,-500.0,0.00016438,2]
[330278785,1719223837889,-500.0,0.00016438,2]
[330278787,1719223837898,-500.0,0.00016438,2]
[330278789,1719223837908,-500.0,0.00016438,2]
[330278791,1719223837918,-571.35,0.00016438,2]
[330278793,1719223837928,-500.0,0.00016438,2]
[330278795,1719223837938,-500.0,0.00016438,2]
[330278797,1719223837948,-500.0,0.00016438,2]
[330278799,1719223837961,-500.0,0.00016438,2]
[330278801,1719223837971,-500.0,0.00016438,2]
[330278803,1719223837982,-507.62386156,0.00016438,2]
[330278805,1719223837993,-500.0,0.00016438,2]
[330278807,1719223838003,-500.0,0.00016438,2]
[330278809,1719223838013,-500.0,0.00016438,2]
[330278810,1719223838024,-286.07919048,0.00016438,2]
[330278811,1719223838035,-500.0,0.00016438,2]
[330278812,1719223838047,-500.0,0.00016438,2]
[330278813,1719223838058,-500.0,0.00016438,2]
[330278814,1719223838069,-388.9303683,0.00016438,2]
[330278815,1719223838084,-74.05319324,0.00016438,2]
[330278816,1719223838095,-500.0,0.00016438,2]
[330278817,1719223838105,-500.0,0.00016438,2]
[330278818,1719223838114,-500.0,0.00016438,2]
[330278819,1719223838124,-1330.8,0.00016438,2]
[330278820,1719223838133,-500.0,0.00016438,2]
[330278821,1719223838143,-500.0,0.00016438,2]
[330278822,1719223838152,-500.0,0.00016438,2]
[330278823,1719223838162,-500.0,0.00016438,2]
[330278824,1719223838172,-500.0,0.00016438,2]
[330278825,1719223838182,-500.0,0.00016438,2]
[330278826,1719223838192,-687.58,0.00016438,2]
[330278827,1719223838202,-863.21,0.00016438,2]
[330278828,1719223838213,-500.0,0.00016438,2]
[330278829,1719223838223,-500.0,0.00016438,2]
[330278830,1719223838233,-500.0,0.00016438,2]
[330278831,1719223838243,-500.0,0.00016438,2]
[330278832,1719223838252,-500.0,0.00016438,2]
[330278833,1719223838261,-500.0,0.00016438,2]
[330278834,1719223838271,-500.0,0.00016438,2]
[330278835,1719223838280,-591.84,0.00016438,2]
[330278836,1719223838289,-500.0,0.00016438,2]
[330278837,1719223838298,-500.0,0.00016438,2]
[330278838,1719223838308,-7931.04,0.00016438,2]
[330278839,1719223838317,-500.0,0.00016438,2]
[330278840,1719223838327,-703.39,0.00016438,2]
[330278841,1719223838336,-528.28,0.00016438,2]
[330278842,1719223838346,-2939.19819028,0.00016438,2]
[330278843,1719223838358,-7948.99180972,0.00016438,2]
[330278844,1719223838367,-563.36,0.00016438,2]
[330278845,1719223838377,-500.0,0.00016438,2]
[330278846,1719223838386,-1102.71,0.00016438,2]
[330278847,1719223838395,-500.0,0.00016438,2]
[330278848,1719223838404,-810.95,0.00016438,2]
[330278849,1719223838414,-8827.93,0.00016438,2]
[330278850,1719223838423,-2322.76,0.00016438,2]
[330278851,1719223838432,-500.0,0.00016438,2]
[330278852,1719223838441,-1884.08,0.00016438,2]
[330278853,1719223838451,-500.0,0.00016438,2]
[330278854,1719223838462,-749.83,0.00016438,2]
[330278855,1719223838472,-500.0,0.00016438,2]
[330278856,1719223838481,-500.0,0.00016438,2]
[330278857,1719223838490,-500.0,0.00016438,2]
[330278858,1719223838642,-500.0,0.00016438,2]
[330278859,1719223838653,-500.0,0.00016438,2]
[330278862,1719223838663,-2142.26,0.00016438,2]
[330278865,1719223838672,-2297.03,0.00016438,2]
[330278866,1719223838682,-500.0,0.00016438,2]
[330278867,1719223838692,-500.0,0.00016438,2]
[330278869,1719223838702,-500.0,0.00016438,2]
[330278871,1719223838714,-500.0,0.00016438,2]
[330278873,1719223838723,-942.21,0.00016438,2]
[330278875,1719223838733,-500.0,0.00016438,2]
[330278876,1719223838743,-248.7982432,0.00016438,2]
[330278877,1719223838752,-500.0,0.00016438,2]
[330278879,1719223838763,-500.0,0.00016438,2]
[330278880,1719223838772,-502.59021124,0.00016438,2]
[330278881,1719223838782,-567.77,0.00016438,2]
[330278882,1719223838792,-500.0,0.00016438,2]
[330278883,1719223838802,-500.0,0.00016438,2]
[330278884,1719223838812,-513.7,0.00016438,2]
[330278885,1719223838822,-500.0,0.00016438,2]
[330278886,1719223838832,-500.0,0.00016438,2]
[330278887,1719223838842,-500.0,0.00016438,2]
[330278888,1719223838852,-500.0,0.00016438,2]
[330278889,1719223838861,-500.0,0.00016438,2]
[330278890,1719223838875,-500.0,0.00016438,2]
[330278891,1719223838887,-2304.52,0.00016438,2]
[330278892,1719223838898,-539.9,0.00016438,2]
[330278893,1719223838908,-500.0,0.00016438,2]
[330278894,1719223838919,-2211.08,0.00016438,2]
[330278895,1719223838929,-1101.63,0.00016438,2]
[330278896,1719223838940,-500.0,0.00016438,2]
[330278897,1719223838950,-500.0,0.00016438,2]
[330278898,1719223838966,-500.0,0.00016438,2]
[330278899,1719223838979,-664.18,0.00016438,2]
[330278900,1719223838989,-500.0,0.00016438,2]
[330278901,1719223838999,-4981.25,0.00016438,2]
[330278902,1719223839009,-500.0,0.00016438,2]
[330278903,1719223839019,-500.0,0.00016438,2]
[330278904,1719223839030,-500.0,0.00016438,2]
[330278905,1719223839040,-809.69,0.00016438,2]
[330278906,1719223839051,-500.0,0.00016438,2]
[330278907,1719223839061,-1004.61,0.00016438,2]
[330278908,1719223839071,-1350.44,0.00016438,2]
[330278909,1719223839082,-500.0,0.00016438,2]
[330278910,1719223839092,-500.0,0.00016438,2]
[330278911,1719223839103,-5256.94,0.00016711,2]
[330278912,1719223839113,-537.22,0.00016711,2]
[330278913,1719223839125,-500.0,0.00016711,2]
[330278914,1719223839136,-500.0,0.00016712,2]
[330278915,1719223839146,-500.0,0.00016712,2]
[330278916,1719223839157,-500.0,0.00016712,2]
[330278917,1719223839168,-500.0,0.00016712,2]
[330278918,1719223839178,-500.0,0.00016712,2]
[330278919,1719223839189,-571.35,0.00016712,2]
[330278920,1719223839198,-500.0,0.00016712,2]
[330278921,1719223839216,-500.0,0.00016712,2]
[330278922,1719223839226,-500.0,0.00016712,2]
[330278923,1719223839236,-500.0,0.00016712,2]
[330278924,1719223839246,-500.0,0.00016712,2]
[330278925,1719223839257,-500.0,0.00016712,2]
[330278926,1719223839267,-500.0,0.00016712,2]
[330278927,1719223839277,-500.0,0.00016712,2]
[330278928,1719223839287,-500.0,0.00016712,2]
[330278929,1719223839297,-500.0,0.00016712,2]
[330278930,1719223839307,-500.0,0.00016712,2]
[330278931,1719223839316,-500.0,0.00016712,2]
[330278932,1719223839326,-500.0,0.00016712,2]
[330278933,1719223839336,-1330.8,0.00016712,2]
[330278934,1719223839346,-500.0,0.00016712,2]
[330278935,1719223839357,-500.0,0.00016712,2]
[330278936,1719223839367,-643.60848777,0.00016712,2]
[330278937,1719223839379,-509.24617532,0.00016712,2]
[330278938,1719223839389,-687.58,0.00016712,2]
[330278939,1719223839399,-863.21,0.00016712,2]
[330278940,1719223839410,-500.0,0.00016712,2]
[330278941,1719223839421,-500.0,0.00016712,2]
[330278942,1719223839431,-500.0,0.00016712,2]
[330278943,1719223839442,-500.0,0.00016712,2]
[330278944,1719223839452,-500.0,0.00016712,2]
[330278945,1719223839472,-500.0,0.00016712,2]
[330278946,1719223839482,-591.84,0.00016712,2]
[330278947,1719223839492,-500.0,0.00016712,2]
[330278948,1719223839501,-500.0,0.00016712,2]
[330278949,1719223839511,-7931.04,0.00016712,2]
[330278950,1719223839521,-500.0,0.00016712,2]
[330278951,1719223839531,-703.39,0.00016712,2]
[330278952,1719223839541,-528.28,0.00016712,2]
[330278953,1719223839550,-10888.19,0.00016712,2]
[330278954,1719223839560,-563.36,0.00016712,2]
[330278955,1719223839569,-500.0,0.00016712,2]
[330278956,1719223839578,-1102.71,0.00016712,2]
[330278957,1719223839588,-500.0,0.00016712,2]
[330278958,1719223839597,-810.95,0.00016712,2]
[330278959,1719223839607,-8827.93,0.00016712,2]
[330278960,1719223839618,-2322.76,0.00016712,2]
[330278961,1719223839629,-500.0,0.00016712,2]
[330278962,1719223839639,-1884.08,0.00016712,2]
[330278963,1719223839650,-500.0,0.00016712,2]
[330278964,1719223839661,-749.83,0.00016712,2]
[330278965,1719223839671,-500.0,0.00016712,2]
[330278966,1719223839680,-500.0,0.00016712,2]
[330278967,1719223839690,-500.0,0.00016712,2]
[330278968,1719223839700,-500.0,0.00016712,2]
[330278969,1719223839715,-500.0,0.00016712,2]
[330278970,1719223839725,-2142.26,0.00016712,2]
[330278971,1719223839734,-2297.03,0.00016712,2]
[330278972,1719223839743,-500.0,0.00016712,2]
[330278973,1719223839752,-500.0,0.00016712,2]
[330278974,1719223839762,-500.0,0.00016712,2]
[330278977,1719223839771,-500.0,0.00016712,2]
[330278979,1719223839782,-942.21,0.00016712,2]
[330278981,1719223839792,-500.0,0.00016712,2]
[330278983,1719223839802,-500.0,0.00016712,2]
[330278986,1719223839812,-500.0,0.00016712,2]
[330278988,1719223839823,-567.77,0.00016712,2]
[330278991,1719223839833,-500.0,0.00016712,2]
[330278992,1719223839844,-500.0,0.00016712,2]
[330278994,1719223839854,-513.7,0.00016712,2]
[330278997,1719223839864,-500.0,0.00016712,2]
[330278999,1719223839876,-500.0,0.00016712,2]
[330279001,1719223839889,-500.0,0.00016712,2]
[330279002,1719223839899,-500.0,0.00016712,2]
[330279004,1719223839910,-500.0,0.00016712,2]
[330279007,1719223839924,-2304.52,0.00016712,2]
[330279008,1719223839934,-539.9,0.00016712,2]
[330279010,1719223839944,-500.0,0.00016712,2]
[330279012,1719223839955,-2211.08,0.00016712,2]
[330279014,1719223839967,-1101.63,0.00016712,2]
[330279016,1719223839977,-500.0,0.00016712,2]
[330279018,1719223839987,-506.71995163,0.00016712,2]
[330279020,1719223839997,-500.0,0.00016712,2]
[330279022,1719223840007,-664.18,0.00016712,2]
[330279024,1719223840016,-500.0,0.00016712,2]
[330279026,1719223840026,-4981.25,0.00016712,2]
[330279028,1719223840036,-500.0,0.00016712,2]
[330279030,1719223840046,-500.0,0.00016712,2]
[330279032,1719223840056,-500.0,0.00016712,2]
[330279034,1719223840065,-809.69,0.00016712,2]
[330279036,1719223840074,-500.0,0.00016712,2]
[330279038,1719223840084,-1004.61,0.00016712,2]
[330279040,1719223840093,-1350.44,0.00016712,2]
[330279042,1719223840103,-500.0,0.00016712,2]
[330279044,1719223840112,-500.0,0.00016717,2]
[330279046,1719223840122,-500.0,0.00016717,2]
[330279048,1719223840131,-500.0,0.00016717,2]
[330279050,1719223840142,-500.0,0.00016717,2]
[330279052,1719223840152,-5256.94,0.00016985,2]
[330279054,1719223840161,-537.22,0.00016985,2]
[330279056,1719223840171,-500.0,0.00016985,2]
[330279058,1719223840181,-500.0,0.00016986,2]
[330279060,1719223840190,-500.0,0.00016986,2]
[330279062,1719223840199,-448.7612793,0.00016986,2]
[330279064,1719223840212,-500.0,0.00016986,2]
[330279066,1719223840222,-500.0,0.00016986,2]
[330279068,1719223840231,-571.35,0.00016986,2]
[330279069,1719223840241,-500.0,0.00016986,2]
[330279071,1719223840251,-500.0,0.00016986,2]
[330279074,1719223840261,-500.0,0.00016986,2]
[330279076,1719223840271,-500.0,0.00016986,2]
[330279078,1719223840280,-500.0,0.00016986,2]
[330279080,1719223840290,-500.0,0.00016986,2]
[330279082,1719223840299,-500.0,0.00016986,2]
[330279083,1719223840310,-500.0,0.00016986,2]
[330279085,1719223840320,-500.0,0.00016986,2]
[330279087,1719223840329,-500.0,0.00016986,2]
[330279089,1719223840338,-500.0,0.00016986,2]
[330279091,1719223840348,-500.0,0.00016986,2]
[330279093,1719223840358,-500.0,0.00016986,2]
[330279095,1719223840368,-1330.8,0.00016986,2]
[330279096,1719223840377,-500.0,0.00016986,2]
[330279098,1719223840387,-500.0,0.00016986,2]
[330279100,1719223840396,-687.58,0.00016986,2]
[330279102,1719223840406,-863.21,0.00016986,2]
[330279103,1719223840415,-500.0,0.00016986,2]
[330279104,1719223840424,-500.0,0.00016986,2]
[330279105,1719223840434,-500.0,0.00016986,2]
[330279106,1719223840444,-500.0,0.00016986,2]
[330279107,1719223840457,-500.0,0.00016986,2]
[330279108,1719223840467,-446.33398699,0.00016986,2]
[330279109,1719223840476,-591.84,0.00016986,2]
[330279110,1719223840495,-500.0,0.00016986,2]
[330279111,1719223840506,-500.0,0.00016986,2]
[330279112,1719223840517,-7931.04,0.00016986,2]